[Event "Titled Tuesday Blitz November 22 Early 2022"]
[White "Fathy, Elameir"]
[Black "Garcia Ramos, Daniel"]
[WhiteFideId "10600396"]
[BlackFideId "32010311"]
[WhiteElo "2311"]
[BlackElo "2357"]
[Result "0-1"]
[Round "06"]
[TimeControl "180+1"]
[Date "2022.11.23"]
[WhiteClock "0:00:21"]
[BlackClock "0:00:04"]

1. d4 {[%clk 0:03:00]}  d5 {[%clk 0:02:59]} 2. c4 {[%clk 0:03:01]}  e6 {[%clk 0:03:00]} 3. Nf3 {[%clk 0:03:01]}  Nf6 {[%clk 0:03:00]} 4. g3 {[%clk 0:03:01]}  Bb4+ {[%clk 0:03:00]} 5. Nbd2 {[%clk 0:03:01]}  dxc4 {[%clk 0:02:59]} 6. Bg2 {[%clk 0:03:00]}  O-O {[%clk 0:02:59]} 7. Qc2 {[%clk 0:02:56]}  b5 {[%clk 0:02:53]} 8. a4 {[%clk 0:02:55]}  Bb7 {[%clk 0:02:29]} 9. axb5 {[%clk 0:02:50]}  Qd5 {[%clk 0:02:11]} 10. O-O {[%clk 0:02:38]}  Bxd2 {[%clk 0:02:01]} 11. Bxd2 {[%clk 0:02:31]}  Qxb5 {[%clk 0:02:00]} 12. Ra5 {[%clk 0:01:59]}  Qb3 {[%clk 0:01:37]} 13. Qxb3 {[%clk 0:01:48]}  cxb3 {[%clk 0:01:36]} 14. Rc1 {[%clk 0:01:49]}  Nc6 {[%clk 0:00:45]} 15. Rb5 {[%clk 0:01:45]}  Ba6 {[%clk 0:00:45]} 16. Rxb3 {[%clk 0:01:38]}  Ne7 {[%clk 0:00:43]} 17. Rxc7 {[%clk 0:01:24]}  Ned5 {[%clk 0:00:37]} 18. Rc2 {[%clk 0:01:22]}  Bxe2 {[%clk 0:00:36]} 19. Ne5 {[%clk 0:01:14]}  Bd1 {[%clk 0:00:34]} 20. Rbc3 {[%clk 0:01:07]}  Bxc2 {[%clk 0:00:33]} 21. Rxc2 {[%clk 0:01:08]}  Rfc8 {[%clk 0:00:31]} 22. Bc3 {[%clk 0:01:07]}  a5 {[%clk 0:00:29]} 23. g4 {[%clk 0:00:57]}  h6 {[%clk 0:00:27]} 24. h4 {[%clk 0:00:56]}  a4 {[%clk 0:00:27]} 25. g5 {[%clk 0:00:56]}  hxg5 {[%clk 0:00:28]} 26. hxg5 {[%clk 0:00:57]}  a3 {[%clk 0:00:25]} 27. bxa3 {[%clk 0:00:53]}  Rxa3 {[%clk 0:00:23]} 28. gxf6 {[%clk 0:00:50]}  Raxc3 {[%clk 0:00:14]} 29. Rb2 {[%clk 0:00:49]}  gxf6 {[%clk 0:00:13]} 30. Nd7 {[%clk 0:00:50]}  Kg7 {[%clk 0:00:13]} 31. Bxd5 {[%clk 0:00:47]}  exd5 {[%clk 0:00:12]} 32. Rb6 {[%clk 0:00:48]}  R8c6 {[%clk 0:00:10]} 33. Rb5 {[%clk 0:00:44]}  Rd6 {[%clk 0:00:07]} 34. Nb6 {[%clk 0:00:34]}  Rd3 {[%clk 0:00:06]} 35. Nxd5 {[%clk 0:00:31]}  Rxd4 {[%clk 0:00:06]} 36. Ne3 {[%clk 0:00:32]}  Kg6 {[%clk 0:00:04]} 37. Kg2 {[%clk 0:00:30]}  Rf4 {[%clk 0:00:03]} 38. Rb8 {[%clk 0:00:30]}  Rd2 {[%clk 0:00:03]} 39. Rg8+ {[%clk 0:00:28]}  Kh7 {[%clk 0:00:03]} 40. Rf8 {[%clk 0:00:25]}  Rdxf2+ {[%clk 0:00:04]} 41. Kg1 {[%clk 0:00:26]}  Kg7 {[%clk 0:00:04]} 42. Re8 {[%clk 0:00:25]}  R2f3 {[%clk 0:00:05]} 43. Ng2 {[%clk 0:00:23]}  Rg4 {[%clk 0:00:04]} 44. Kh2 {[%clk 0:00:21]}  Rf2 {[%clk 0:00:04]} 0-1


[Site "https://www.chess.com"]

[Event "Titled Tuesday Blitz November 22 Early 2022"]
[White "Fernandez Siles, Luis"]
[Black "Goriatchkin, Jouri"]
[WhiteFideId "2209420"]
[BlackFideId "4120183"]
[WhiteElo "2186"]
[BlackElo "1910"]
[Result "1-0"]
[Round "06"]
[TimeControl "180+1"]
[Date "2022.11.23"]
[WhiteClock "0:00:21"]
[BlackClock "0:00:01"]

1. d4 {[%clk 0:03:00]}  d5 {[%clk 0:02:59]} 2. c4 {[%clk 0:03:00]}  Nf6 {[%clk 0:02:57]} 3. cxd5 {[%clk 0:03:00]}  Qxd5 {[%clk 0:02:49]} 4. Nc3 {[%clk 0:02:59]}  Qd8 {[%clk 0:02:49]} 5. e4 {[%clk 0:02:59]}  e6 {[%clk 0:02:46]} 6. Nf3 {[%clk 0:02:58]}  Be7 {[%clk 0:02:47]} 7. Bd3 {[%clk 0:02:58]}  b6 {[%clk 0:02:45]} 8. O-O {[%clk 0:02:57]}  O-O {[%clk 0:02:42]} 9. Re1 {[%clk 0:02:55]}  Ba6 {[%clk 0:02:36]} 10. Bc2 {[%clk 0:02:53]}  c5 {[%clk 0:02:34]} 11. e5 {[%clk 0:02:50]}  Nd5 {[%clk 0:02:22]} 12. a3 {[%clk 0:02:42]}  Nc6 {[%clk 0:02:19]} 13. Ne4 {[%clk 0:02:22]}  Nxd4 {[%clk 0:02:14]} 14. Nxd4 {[%clk 0:02:19]}  cxd4 {[%clk 0:02:15]} 15. Qxd4 {[%clk 0:02:19]}  Rc8 {[%clk 0:02:10]} 16. Bb3 {[%clk 0:02:11]}  Bc5 {[%clk 0:01:56]} 17. Nxc5 {[%clk 0:02:09]}  bxc5 {[%clk 0:01:57]} 18. Qg4 {[%clk 0:02:04]}  Kh8 {[%clk 0:01:29]} 19. Bc2 {[%clk 0:01:50]}  c4 {[%clk 0:01:25]} 20. Qh5 {[%clk 0:01:45]}  g6 {[%clk 0:01:24]} 21. Qh6 {[%clk 0:01:43]}  Rg8 {[%clk 0:01:12]} 22. Bg5 {[%clk 0:01:34]}  Qf8 {[%clk 0:00:57]} 23. Qh4 {[%clk 0:01:19]}  f5 {[%clk 0:00:30]} 24. exf6 {[%clk 0:01:19]}  Qf7 {[%clk 0:00:30]} 25. Rad1 {[%clk 0:01:08]}  Rgd8 {[%clk 0:00:27]} 26. h3 {[%clk 0:01:07]}  c3 {[%clk 0:00:27]} 27. bxc3 {[%clk 0:01:02]}  Rxc3 {[%clk 0:00:26]} 28. Be4 {[%clk 0:00:59]}  Bb7 {[%clk 0:00:17]} 29. Bh6 {[%clk 0:00:51]}  Rc4 {[%clk 0:00:16]} 30. Bg7+ {[%clk 0:00:51]}  Kg8 {[%clk 0:00:16]} 31. Qg5 {[%clk 0:00:42]}  Rdc8 {[%clk 0:00:08]} 32. Bxd5 {[%clk 0:00:39]}  Bxd5 {[%clk 0:00:05]} 33. Rxd5 {[%clk 0:00:38]}  exd5 {[%clk 0:00:05]} 34. Re7 {[%clk 0:00:38]}  Qxe7 {[%clk 0:00:05]} 35. fxe7 {[%clk 0:00:35]}  Rc1+ {[%clk 0:00:05]} 36. Kh2 {[%clk 0:00:34]}  Re1 {[%clk 0:00:01]} 37. Bf6 {[%clk 0:00:29]}  Kf7 {[%clk 0:00:01]} 38. Qh4 {[%clk 0:00:21]} 1-0


[Site "https://www.chess.com"]

[Event "Titled Tuesday Blitz November 22 Early 2022"]
[White "Gedgafov, Chamal"]
[Black "Chuemsakul, Sarocha"]
[WhiteFideId "34130621"]
[BlackFideId "6203710"]
[WhiteElo "2067"]
[BlackElo "1686"]
[Result "0-1"]
[Round "06"]
[TimeControl "180+1"]
[Date "2022.11.23"]
[WhiteClock "0:02:39"]
[BlackClock "0:01:25"]

1. d4 {[%clk 0:03:00]}  Nf6 {[%clk 0:02:58]} 2. Nf3 {[%clk 0:03:00]}  g6 {[%clk 0:02:58]} 3. Bf4 {[%clk 0:03:00]}  Bg7 {[%clk 0:02:58]} 4. h3 {[%clk 0:03:00]}  d5 {[%clk 0:02:55]} 5. e3 {[%clk 0:02:57]}  c6 {[%clk 0:02:55]} 6. c3 {[%clk 0:02:56]}  O-O {[%clk 0:02:55]} 7. Qb3 {[%clk 0:02:57]}  Qb6 {[%clk 0:02:54]} 8. Nbd2 {[%clk 0:02:57]}  Nbd7 {[%clk 0:02:52]} 9. Ne5 {[%clk 0:02:57]}  a5 {[%clk 0:02:39]} 10. a4 {[%clk 0:02:55]}  Qxb3 {[%clk 0:02:28]} 11. Nxb3 {[%clk 0:02:56]}  Nxe5 {[%clk 0:02:28]} 12. Bxe5 {[%clk 0:02:57]}  Bf5 {[%clk 0:02:21]} 13. Be2 {[%clk 0:02:57]}  Nd7 {[%clk 0:02:02]} 14. Bg3 {[%clk 0:02:56]}  Bc2 {[%clk 0:02:01]} 15. Nd2 {[%clk 0:02:54]}  Nb6 {[%clk 0:01:57]} 16. b3 {[%clk 0:02:53]}  Bf5 {[%clk 0:01:56]} 17. O-O {[%clk 0:02:53]}  h5 {[%clk 0:01:55]} 18. c4 {[%clk 0:02:50]}  Be6 {[%clk 0:01:52]} 19. c5 {[%clk 0:02:50]}  Nd7 {[%clk 0:01:48]} 20. Rfb1 {[%clk 0:02:47]}  Bf6 {[%clk 0:01:35]} 21. b4 {[%clk 0:02:46]}  axb4 {[%clk 0:01:35]} 22. Rxb4 {[%clk 0:02:46]}  Nxc5 {[%clk 0:01:34]} 23. Rab1 {[%clk 0:02:41]}  Nxa4 {[%clk 0:01:32]} 24. Rxb7 {[%clk 0:02:39]}  Nc3 {[%clk 0:01:30]} 25. Re1 {[%clk 0:02:39]}  Ra2 {[%clk 0:01:25]} 0-1


[Site "https://www.chess.com"]

[Event "Titled Tuesday Blitz November 22 Early 2022"]
[White "Gjestemoen-VonHirsch, Andre"]
[Black "Ajay, Karthikeyan"]
[WhiteFideId "1539531"]
[BlackFideId "35011685"]
[WhiteElo "2198"]
[BlackElo "2337"]
[Result "0-1"]
[Round "06"]
[TimeControl "180+1"]
[Date "2022.11.23"]
[WhiteClock "0:00:02"]
[BlackClock "0:01:48"]

1. b3 {[%clk 0:03:00]}  e5 {[%clk 0:02:58]} 2. Bb2 {[%clk 0:02:58]}  Nc6 {[%clk 0:02:59]} 3. e3 {[%clk 0:02:57]}  Nf6 {[%clk 0:02:54]} 4. Bb5 {[%clk 0:02:51]}  Qe7 {[%clk 0:02:54]} 5. Nf3 {[%clk 0:02:47]}  e4 {[%clk 0:02:53]} 6. Nd4 {[%clk 0:02:23]}  Nxd4 {[%clk 0:02:50]} 7. Bxd4 {[%clk 0:02:23]}  a6 {[%clk 0:02:50]} 8. Be2 {[%clk 0:02:23]}  c5 {[%clk 0:02:51]} 9. Bb2 {[%clk 0:02:22]}  d5 {[%clk 0:02:51]} 10. c4 {[%clk 0:02:21]}  Be6 {[%clk 0:02:46]} 11. cxd5 {[%clk 0:02:20]}  Nxd5 {[%clk 0:02:45]} 12. Nc3 {[%clk 0:02:17]}  Nxc3 {[%clk 0:02:42]} 13. Bxc3 {[%clk 0:02:14]}  Rg8 {[%clk 0:02:36]} 14. Qc2 {[%clk 0:02:13]}  f5 {[%clk 0:02:35]} 15. d3 {[%clk 0:02:00]}  exd3 {[%clk 0:02:33]} 16. Bxd3 {[%clk 0:02:01]}  g6 {[%clk 0:02:34]} 17. Rc1 {[%clk 0:01:39]}  b5 {[%clk 0:02:23]} 18. O-O {[%clk 0:01:38]}  Rc8 {[%clk 0:02:18]} 19. Rfd1 {[%clk 0:01:08]}  Bg7 {[%clk 0:02:11]} 20. Qe2 {[%clk 0:00:39]}  Bxc3 {[%clk 0:02:01]} 21. Rxc3 {[%clk 0:00:40]}  Kf7 {[%clk 0:02:02]} 22. e4 {[%clk 0:00:35]}  f4 {[%clk 0:01:57]} 23. Qf3 {[%clk 0:00:17]}  Qf6 {[%clk 0:01:52]} 24. Rdc1 {[%clk 0:00:14]}  Qe5 {[%clk 0:01:52]} 25. g3 {[%clk 0:00:12]}  g5 {[%clk 0:01:52]} 26. Qh5+ {[%clk 0:00:12]}  Kg7 {[%clk 0:01:53]} 27. h4 {[%clk 0:00:07]}  h6 {[%clk 0:01:52]} 28. Bb1 {[%clk 0:00:05]}  c4 {[%clk 0:01:50]} 29. bxc4 {[%clk 0:00:04]}  bxc4 {[%clk 0:01:51]} 30. hxg5 {[%clk 0:00:04]}  hxg5 {[%clk 0:01:51]} 31. Kf1 {[%clk 0:00:02]}  Rh8 {[%clk 0:01:49]} 32. Qf3 {[%clk 0:00:02]}  Rcf8 {[%clk 0:01:48]} 0-1


[Site "https://www.chess.com"]

[Event "Titled Tuesday Blitz November 22 Early 2022"]
[White "Goldin, Alexander"]
[Black "Unat, Can Haktan"]
[WhiteFideId "2019540"]
[BlackFideId "6398073"]
[WhiteElo "2628"]
[BlackElo "2146"]
[Result "0-1"]
[Round "06"]
[TimeControl "180+1"]
[Date "2022.11.23"]
[WhiteClock "0:00:06"]
[BlackClock "0:00:08"]

1. d4 {[%clk 0:02:57]}  Nf6 {[%clk 0:02:48]} 2. c4 {[%clk 0:02:56]}  g6 {[%clk 0:02:47]} 3. Nf3 {[%clk 0:02:54]}  d5 {[%clk 0:02:48]} 4. cxd5 {[%clk 0:02:53]}  Bg7 {[%clk 0:02:47]} 5. g3 {[%clk 0:02:43]}  O-O {[%clk 0:02:47]} 6. Bg2 {[%clk 0:02:43]}  Nxd5 {[%clk 0:02:48]} 7. O-O {[%clk 0:02:43]}  Nb6 {[%clk 0:02:48]} 8. Nc3 {[%clk 0:02:36]}  Nc6 {[%clk 0:02:48]} 9. e3 {[%clk 0:02:36]}  e5 {[%clk 0:02:48]} 10. d5 {[%clk 0:02:33]}  Ne7 {[%clk 0:02:42]} 11. e4 {[%clk 0:02:26]}  Bg4 {[%clk 0:02:36]} 12. h3 {[%clk 0:02:18]}  Bxf3 {[%clk 0:02:35]} 13. Qxf3 {[%clk 0:02:17]}  c6 {[%clk 0:02:36]} 14. Rd1 {[%clk 0:02:13]}  cxd5 {[%clk 0:02:35]} 15. exd5 {[%clk 0:02:13]}  Nf5 {[%clk 0:02:34]} 16. Qd3 {[%clk 0:01:50]}  Nd4 {[%clk 0:02:15]} 17. f4 {[%clk 0:01:47]}  Rc8 {[%clk 0:01:49]} 18. fxe5 {[%clk 0:01:30]}  Bxe5 {[%clk 0:01:50]} 19. Be3 {[%clk 0:01:29]}  Nf5 {[%clk 0:01:46]} 20. Bf2 {[%clk 0:01:29]}  Nc4 {[%clk 0:01:46]} 21. Rab1 {[%clk 0:00:54]}  Nxb2 {[%clk 0:01:28]} 22. Rxb2 {[%clk 0:00:54]}  Rxc3 {[%clk 0:01:28]} 23. Qe4 {[%clk 0:00:45]}  Bxg3 {[%clk 0:01:24]} 24. Bxa7 {[%clk 0:00:40]}  Qg5 {[%clk 0:01:11]} 25. Qg4 {[%clk 0:00:33]}  Qxg4 {[%clk 0:00:56]} 26. hxg4 {[%clk 0:00:33]}  Nd6 {[%clk 0:00:57]} 27. Rb3 {[%clk 0:00:31]}  Rfc8 {[%clk 0:00:54]} 28. Rxc3 {[%clk 0:00:17]}  Rxc3 {[%clk 0:00:55]} 29. Bb8 {[%clk 0:00:17]}  Kf8 {[%clk 0:00:33]} 30. Rb1 {[%clk 0:00:15]}  Nc4 {[%clk 0:00:14]} 31. Bxg3 {[%clk 0:00:10]}  Rxg3 {[%clk 0:00:15]} 32. Kf2 {[%clk 0:00:07]}  Ra3 {[%clk 0:00:16]} 33. Rxb7 {[%clk 0:00:07]}  Rxa2+ {[%clk 0:00:15]} 34. Kg3 {[%clk 0:00:07]}  Ne3 {[%clk 0:00:10]} 35. Bf3 {[%clk 0:00:07]}  g5 {[%clk 0:00:08]} 36. d6 {[%clk 0:00:06]}  Nf1+ {[%clk 0:00:08]} 0-1


[Site "https://www.chess.com"]

[Event "Titled Tuesday Blitz November 22 Early 2022"]
[White "Goryachkina, Aleksandra"]
[Black "Derjabin, Ilja"]
[WhiteFideId "4147103"]
[BlackFideId "14104768"]
[WhiteElo "2484"]
[BlackElo "2312"]
[Result "1-0"]
[Round "06"]
[TimeControl "180+1"]
[Date "2022.11.23"]
[WhiteClock "0:00:07"]
[BlackClock "0:00:04"]

1. e4 {[%clk 0:03:00]}  e6 {[%clk 0:02:51]} 2. d4 {[%clk 0:02:59]}  d5 {[%clk 0:02:51]} 3. Nc3 {[%clk 0:02:59]}  Nf6 {[%clk 0:02:50]} 4. Bg5 {[%clk 0:02:58]}  Be7 {[%clk 0:02:51]} 5. e5 {[%clk 0:02:53]}  Ne4 {[%clk 0:02:50]} 6. Bxe7 {[%clk 0:02:37]}  Qxe7 {[%clk 0:02:51]} 7. Bd3 {[%clk 0:02:20]}  Nxc3 {[%clk 0:02:42]} 8. bxc3 {[%clk 0:02:20]}  c5 {[%clk 0:02:43]} 9. dxc5 {[%clk 0:02:05]}  Qxc5 {[%clk 0:02:34]} 10. Qd2 {[%clk 0:02:04]}  Nc6 {[%clk 0:02:31]} 11. Nf3 {[%clk 0:02:04]}  h6 {[%clk 0:02:27]} 12. O-O {[%clk 0:02:00]}  O-O {[%clk 0:02:25]} 13. Rab1 {[%clk 0:01:53]}  b6 {[%clk 0:02:22]} 14. Rb5 {[%clk 0:01:33]}  Qe7 {[%clk 0:02:21]} 15. c4 {[%clk 0:01:09]}  dxc4 {[%clk 0:01:53]} 16. Be4 {[%clk 0:00:57]}  Bb7 {[%clk 0:01:51]} 17. c3 {[%clk 0:00:31]}  Rfd8 {[%clk 0:01:44]} 18. Qf4 {[%clk 0:00:27]}  Rd7 {[%clk 0:01:17]} 19. h4 {[%clk 0:00:20]}  Rad8 {[%clk 0:01:10]} 20. Rbb1 {[%clk 0:00:20]}  f5 {[%clk 0:00:53]} 21. exf6 {[%clk 0:00:16]}  Qxf6 {[%clk 0:00:53]} 22. Qe3 {[%clk 0:00:12]}  Rf8 {[%clk 0:00:29]} 23. Rfe1 {[%clk 0:00:08]}  Re7 {[%clk 0:00:28]} 24. h5 {[%clk 0:00:05]}  Kh8 {[%clk 0:00:25]} 25. Rbd1 {[%clk 0:00:03]}  Ba8 {[%clk 0:00:17]} 26. Bxc6 {[%clk 0:00:03]}  Bxc6 {[%clk 0:00:17]} 27. Ne5 {[%clk 0:00:04]}  Be8 {[%clk 0:00:16]} 28. Nxc4 {[%clk 0:00:04]}  Bxh5 {[%clk 0:00:16]} 29. Rd6 {[%clk 0:00:05]}  Rc7 {[%clk 0:00:07]} 30. Ne5 {[%clk 0:00:05]}  Qg5 {[%clk 0:00:04]} 31. Qxg5 {[%clk 0:00:04]}  hxg5 {[%clk 0:00:05]} 32. Re3 {[%clk 0:00:04]}  Kg8 {[%clk 0:00:04]} 33. Rxe6 {[%clk 0:00:04]}  Bd1 {[%clk 0:00:03]} 34. a3 {[%clk 0:00:04]}  b5 {[%clk 0:00:02]} 35. Rg3 {[%clk 0:00:04]}  g4 {[%clk 0:00:02]} 36. Re3 {[%clk 0:00:04]}  a5 {[%clk 0:00:02]} 37. Rd6 {[%clk 0:00:04]}  Bb3 {[%clk 0:00:01]} 38. Rd4 {[%clk 0:00:04]}  a4 {[%clk 0:00:02]} 39. Nxg4 {[%clk 0:00:04]}  Rcf7 {[%clk 0:00:02]} 40. f3 {[%clk 0:00:04]}  Bc4 {[%clk 0:00:01]} 41. Ne5 {[%clk 0:00:04]}  Rc7 {[%clk 0:00:01]} 42. Kf2 {[%clk 0:00:04]}  Rc5 {[%clk 0:00:02]} 43. Nxc4 {[%clk 0:00:05]}  bxc4 {[%clk 0:00:02]} 44. Ree4 {[%clk 0:00:05]}  Rb8 {[%clk 0:00:02]} 45. Rxc4 {[%clk 0:00:05]}  Rxc4 {[%clk 0:00:02]} 46. Rxc4 {[%clk 0:00:05]}  Rb3 {[%clk 0:00:03]} 47. Rxa4 {[%clk 0:00:06]}  Rxc3 {[%clk 0:00:03]} 48. Kg3 {[%clk 0:00:06]}  Kf7 {[%clk 0:00:04]} 49. Ra7+ {[%clk 0:00:06]}  Kg6 {[%clk 0:00:04]} 50. Ra6+ {[%clk 0:00:06]}  Kh7 {[%clk 0:00:04]} 51. Kf4 {[%clk 0:00:05]}  Rc2 {[%clk 0:00:05]} 52. g4 {[%clk 0:00:05]}  Ra2 {[%clk 0:00:06]} 53. a4 {[%clk 0:00:05]}  Ra3 {[%clk 0:00:06]} 54. a5 {[%clk 0:00:05]}  Ra4+ {[%clk 0:00:06]} 55. Kg5 {[%clk 0:00:05]}  Ra3 {[%clk 0:00:07]} 56. f4 {[%clk 0:00:05]}  Ra1 {[%clk 0:00:07]} 57. f5 {[%clk 0:00:06]}  Rb1 {[%clk 0:00:06]} 58. Ra7 {[%clk 0:00:06]}  Kh8 {[%clk 0:00:05]} 59. Rc7 {[%clk 0:00:05]}  Kh7 {[%clk 0:00:05]} 60. Rc5 {[%clk 0:00:03]}  Ra1 {[%clk 0:00:04]} 61. Rb5 {[%clk 0:00:02]}  Ra2 {[%clk 0:00:04]} 62. Re5 {[%clk 0:00:03]}  Ra3 {[%clk 0:00:04]} 63. Rd5 {[%clk 0:00:03]}  Ra4 {[%clk 0:00:05]} 64. Kh5 {[%clk 0:00:03]}  Ra1 {[%clk 0:00:04]} 65. g5 {[%clk 0:00:03]}  Rh1+ {[%clk 0:00:04]} 66. Kg4 {[%clk 0:00:04]}  Rg1+ {[%clk 0:00:05]} 67. Kf4 {[%clk 0:00:05]}  Rf1+ {[%clk 0:00:06]} 68. Ke5 {[%clk 0:00:05]}  Re1+ {[%clk 0:00:06]} 69. Kd6 {[%clk 0:00:06]}  Ra1 {[%clk 0:00:05]} 70. g6+ {[%clk 0:00:06]}  Kh6 {[%clk 0:00:05]} 71. Kc6 {[%clk 0:00:06]}  Kg5 {[%clk 0:00:04]} 72. Kb6 {[%clk 0:00:07]}  Kf6 {[%clk 0:00:05]} 73. a6 {[%clk 0:00:07]}  Rb1+ {[%clk 0:00:04]} 74. Rb5 {[%clk 0:00:07]} 1-0


[Site "https://www.chess.com"]

[Event "Titled Tuesday Blitz November 22 Early 2022"]
[White "Grabinsky, Vladimir"]
[Black "Koridze, Lile"]
[WhiteFideId "14107074"]
[BlackFideId "13612514"]
[WhiteElo "2198"]
[BlackElo "2050"]
[Result "0-1"]
[Round "06"]
[TimeControl "180+1"]
[Date "2022.11.23"]
[WhiteClock "0:00:01"]
[BlackClock "0:00:42"]

1. e4 {[%clk 0:02:54]}  c5 {[%clk 0:02:59]} 2. b4 {[%clk 0:02:53]}  cxb4 {[%clk 0:02:56]} 3. a3 {[%clk 0:02:52]}  bxa3 {[%clk 0:02:56]} 4. d4 {[%clk 0:02:53]}  e6 {[%clk 0:02:53]} 5. c3 {[%clk 0:02:49]}  d5 {[%clk 0:02:48]} 6. e5 {[%clk 0:02:47]}  Nc6 {[%clk 0:02:41]} 7. Nxa3 {[%clk 0:02:45]}  a6 {[%clk 0:02:38]} 8. Bd3 {[%clk 0:02:43]}  Bd7 {[%clk 0:02:25]} 9. Ne2 {[%clk 0:02:29]}  b5 {[%clk 0:02:20]} 10. Nc2 {[%clk 0:02:25]}  Na5 {[%clk 0:02:17]} 11. h4 {[%clk 0:02:08]}  h6 {[%clk 0:02:14]} 12. Ba3 {[%clk 0:02:03]}  Nc4 {[%clk 0:02:11]} 13. Bxf8 {[%clk 0:01:57]}  Kxf8 {[%clk 0:02:12]} 14. Rh3 {[%clk 0:01:54]}  Ne7 {[%clk 0:02:07]} 15. Qc1 {[%clk 0:01:39]}  a5 {[%clk 0:02:00]} 16. Rf3 {[%clk 0:01:26]}  g6 {[%clk 0:01:49]} 17. Qf4 {[%clk 0:01:21]}  Be8 {[%clk 0:01:42]} 18. Qf6 {[%clk 0:01:17]}  Kg8 {[%clk 0:01:42]} 19. h5 {[%clk 0:01:01]}  Nf5 {[%clk 0:01:40]} 20. Qxd8 {[%clk 0:00:45]}  Rxd8 {[%clk 0:01:40]} 21. Bxc4 {[%clk 0:00:45]}  bxc4 {[%clk 0:01:40]} 22. Rxa5 {[%clk 0:00:45]}  Rb8 {[%clk 0:01:40]} 23. hxg6 {[%clk 0:00:37]}  fxg6 {[%clk 0:01:38]} 24. g4 {[%clk 0:00:35]}  Nh4 {[%clk 0:01:36]} 25. Rf6 {[%clk 0:00:35]}  Rb6 {[%clk 0:01:29]} 26. Nf4 {[%clk 0:00:33]}  Rb1+ {[%clk 0:01:20]} 27. Ke2 {[%clk 0:00:26]}  Rb2 {[%clk 0:01:20]} 28. Kd1 {[%clk 0:00:26]}  Rb1+ {[%clk 0:01:14]} 29. Kd2 {[%clk 0:00:20]}  Nf3+ {[%clk 0:01:11]} 30. Ke3 {[%clk 0:00:20]}  Nh2 {[%clk 0:01:02]} 31. Nxe6 {[%clk 0:00:20]}  Nxg4+ {[%clk 0:01:03]} 32. Kd2 {[%clk 0:00:18]}  Nxf6 {[%clk 0:01:03]} 33. exf6 {[%clk 0:00:19]}  Kf7 {[%clk 0:01:02]} 34. Nf4 {[%clk 0:00:16]}  Kxf6 {[%clk 0:00:59]} 35. Nxd5+ {[%clk 0:00:16]}  Ke6 {[%clk 0:00:55]} 36. Nce3 {[%clk 0:00:10]}  h5 {[%clk 0:00:54]} 37. Nxc4 {[%clk 0:00:08]}  h4 {[%clk 0:00:53]} 38. Nf4+ {[%clk 0:00:07]}  Kd7 {[%clk 0:00:52]} 39. Ne5+ {[%clk 0:00:07]}  Kc7 {[%clk 0:00:52]} 40. Ra7+ {[%clk 0:00:05]}  Rb7 {[%clk 0:00:52]} 41. Ra6 {[%clk 0:00:04]}  h3 {[%clk 0:00:51]} 42. Ra1 {[%clk 0:00:03]}  h2 {[%clk 0:00:51]} 43. Rh1 {[%clk 0:00:03]}  Rb2+ {[%clk 0:00:50]} 44. Ke3 {[%clk 0:00:03]}  g5 {[%clk 0:00:50]} 45. Nfd3 {[%clk 0:00:02]}  Rb3 {[%clk 0:00:47]} 46. c4 {[%clk 0:00:02]}  Rh3+ {[%clk 0:00:44]} 47. f3 {[%clk 0:00:01]}  Bh5 {[%clk 0:00:42]} 0-1


[Site "https://www.chess.com"]

[Event "Titled Tuesday Blitz November 22 Early 2022"]
[White "Gurevich, Dmitry"]
[Black "Bristy, Mukherjee"]
[WhiteFideId "2000407"]
[BlackFideId "25077325"]
[WhiteElo "2506"]
[BlackElo "1715"]
[Result "1-0"]
[Round "06"]
[TimeControl "180+1"]
[Date "2022.11.23"]
[WhiteClock "0:01:43"]
[BlackClock "0:01:34"]

1. d4 {[%clk 0:03:00]}  f5 {[%clk 0:02:58]} 2. Nf3 {[%clk 0:02:59]}  Nf6 {[%clk 0:02:57]} 3. Bg5 {[%clk 0:02:58]}  e6 {[%clk 0:02:51]} 4. Nbd2 {[%clk 0:02:57]}  d5 {[%clk 0:02:48]} 5. e3 {[%clk 0:02:56]}  Be7 {[%clk 0:02:47]} 6. c4 {[%clk 0:02:56]}  c6 {[%clk 0:02:47]} 7. Bd3 {[%clk 0:02:55]}  O-O {[%clk 0:02:47]} 8. O-O {[%clk 0:02:55]}  Ne4 {[%clk 0:02:43]} 9. Bxe7 {[%clk 0:02:52]}  Qxe7 {[%clk 0:02:43]} 10. Ne5 {[%clk 0:02:52]}  Nd7 {[%clk 0:02:40]} 11. Nxd7 {[%clk 0:02:52]}  Bxd7 {[%clk 0:02:40]} 12. f3 {[%clk 0:02:52]}  Nxd2 {[%clk 0:02:38]} 13. Qxd2 {[%clk 0:02:52]}  Be8 {[%clk 0:02:30]} 14. Rae1 {[%clk 0:02:46]}  Bg6 {[%clk 0:02:29]} 15. Qc3 {[%clk 0:02:42]}  Kh8 {[%clk 0:02:28]} 16. b4 {[%clk 0:02:41]}  a5 {[%clk 0:02:20]} 17. bxa5 {[%clk 0:02:38]}  Qc7 {[%clk 0:02:19]} 18. Rb1 {[%clk 0:02:36]}  Rxa5 {[%clk 0:02:13]} 19. Rxb7 {[%clk 0:02:31]}  Qxb7 {[%clk 0:02:12]} 20. Qxa5 {[%clk 0:02:31]}  Ra8 {[%clk 0:02:12]} 21. Qd2 {[%clk 0:02:18]}  Qa7 {[%clk 0:02:10]} 22. Rb1 {[%clk 0:02:16]}  h6 {[%clk 0:02:07]} 23. Rb2 {[%clk 0:02:15]}  Qa3 {[%clk 0:02:04]} 24. c5 {[%clk 0:02:11]}  Be8 {[%clk 0:01:56]} 25. h3 {[%clk 0:02:05]}  Qa4 {[%clk 0:01:45]} 26. Kh2 {[%clk 0:02:01]}  f4 {[%clk 0:01:44]} 27. Rb4 {[%clk 0:01:50]}  fxe3 {[%clk 0:01:34]} 28. Rxa4 {[%clk 0:01:43]} 1-0


[Site "https://www.chess.com"]